[Event "1000GM Schev-G4 March 2024"]
[Site "Santa Clara"]
[Date "2024.03.10"]
[Round "2.1"]
[White "Ramirez, Carlos"]
[Black "Yao, Hanchi"]
[Result "1/2-1/2"]
[ECO "E35"]
[WhiteElo "2162"]
[BlackElo "1997"]
[Annotator "RC"]
[PlyCount "167"]
[EventDate "2024.03.06"]
[EventType "schev"]
[EventCountry "USA"]
[SourceTitle "playchess.com"]
[Source "ChessBase"]
[SourceQuality "1"]
[TimeControl "5400+30"]

1. d4 {[%emt 0:12:42]} Nf6 {[%emt 0:00:04]} 2. c4 {[%emt 0:05:14]} e6 {[%emt 0:00:02]} 3. Nc3 {[%emt 0:00:17]} Bb4 {[%emt 0:00:03]} 4. Qc2 {[%emt 0:00:09]} d5 {[%emt 0:00:05]} 5. cxd5 {[%emt 0:00:13]} exd5 {[%emt 0:00:16]} 6. Bg5 {[%emt 0:00:08]} O-O {[%emt 0:00:38]} 7. e3 {[%emt 0:00:25]} Re8 {[%emt 0:00:58]} 8. Bd3 {[%emt 0:00:28]} h6 {[%emt 0:00:06]} 9. Bh4 {[%emt 0:00:11]} c5 {[%emt 0:00:47]} 10. Nge2 {[%emt 0:00:31]} c4 {[%emt 0:04:03]} 11. Bh7+ {[%emt 0:00:17]} Kh8 {[%emt 0:00:16]} 12. Bf5 {[%emt 0:00:08]} Bxf5 {[%emt 0:00:24]} 13. Qxf5 {[%emt 0:00:10]} Qd7 {[%emt 0:00:37]} 14. Qc2 {[%emt 0:00:29]} Ne4 {[%emt 0:01:41]} 15. O-O {[%emt 0:00:47]} Nxc3 {[%emt 0:00:59]} 16. bxc3 {[%emt 0:00:39]} Bd6 {[%emt 0:00:55]} 17. Bg3 {[%emt 0:00:40]} Nc6 {[%emt 0:00:51]} 18. Rab1 {[%emt 0:00:56]} Rab8 {[%emt 0:00:57]} 19. Bxd6 {[%emt 0:00:40]} Qxd6 {[%emt 0:00:06]} 20. Qf5 {[%emt 0:00:28]} Kg8 {[%emt 0:01:03]} 21. Rb5 {[%emt 0:03:57]} Ne7 {[%emt 0:00:36]} 22. Qb1 {[%emt 0:00:11]} b6 {[%emt 0:01:02]} 23. f3 {[%emt 0:08:06]} a6 {[%emt 0:00:51]} 24. Rb2 {[%emt 0:00:03]} Rb7 {[%emt 0:02:26]} 25. e4 {[%emt 0:00:34]} Reb8 {[%emt 0:00:24]} 26. e5 {[%emt 0:01:35]} Qg6 {[%emt 0:02:29]} 27. Qc1 {[%emt 0:01:40]} b5 {[%emt 0:00:55]} 28. Ng3 {[%emt 0:09:41]} b4 {[%emt 0:02:13]} 29. cxb4 {[%emt 0:00:09]} Rxb4 {[%emt 0:00:20]} 30. Rxb4 {[%emt 0:00:08]} Rxb4 {[%emt 0:00:03]} 31. Qa3 {[%emt 0:08:16]} Qb6 {[%emt 0:00:13]} 32. Rd1 {[%emt 0:00:50]} Nc6 {[%emt 0:00:10]} 33. Ne2 {[%emt 0:13:09]} Rb2 {[%emt 0:02:57]} 34. Qe3 {[%emt 0:00:41]} Nb4 {[%emt 0:14:57]} 35. Nc3 {[%emt 0:05:00]} Nxa2 {[%emt 0:01:12]} 36. Nxd5 {[%emt 0:00:40]} Qb3 {[%emt 0:00:17]} 37. Qe1 {[%emt 0:03:34]} Nb4 {[%emt 0:06:50]} 38. Nxb4 {[%emt 0:01:19]} Qxb4 {[%emt 0:00:07]} 39. Qxb4 {[%emt 0:00:19]} Rxb4 {[%emt 0:00:03]} 40. Rc1 {[%emt 0:00:09]} Kf8 {[%emt 0:01:02]} 41. Kf2 {[%emt 0:00:02]} a5 {[%emt 0:00:40]} 42. Ke3 {[%emt 0:00:17]} a4 {[%emt 0:01:46]} 43. Ra1 {[%emt 0:01:04]} Rb3+ {[%emt 0:00:20]} 44. Ke4 {[%emt 0:00:13]} a3 {[%emt 0:00:23]} 45. d5 {[%emt 0:00:07]} Rd3 {[%emt 0:00:57]} 46. d6 {[%emt 0:00:32]} g6 {[%emt 0:01:34]} 47. g4 {[%emt 0:00:52]} Ke8 {[%emt 0:00:28]} 48. Rb1 {[%emt 0:04:38]} Rb3 {[%emt 0:01:00]} 49. Ra1 {[%emt 0:02:15]} Kd7 {[%emt 0:02:43]} 50. Kd4 {[%emt 0:03:09]} Rxf3 {[%emt 0:01:11]} 51. Kxc4 {[%emt 0:00:03]} Rf4+ {[%emt 0:00:59]} 52. Kc5 {[%emt 0:01:07]} Ra4 {[%emt 0:01:02]} 53. Kb5 {[%emt 0:00:17]} Re4 {[%emt 0:00:11]} 54. Rxa3 {[%emt 0:02:26]} Rxe5+ {[%emt 0:00:07]} 55. Kc4 {[%emt 0:00:19]} Kxd6 {[%emt 0:00:14]} 56. Kd4 {[%emt 0:00:43]} Re2 {[%emt 0:00:24]} 57. h3 {[%emt 0:00:07]} Ke6 {[%emt 0:01:16]} 58. Rb3 {[%emt 0:02:41]} Kf6 {[%emt 0:01:27]} 59. Rf3+ {[%emt 0:00:03]} Kg7 {[%emt 0:00:33]} 60. Kd3 {[%emt 0:00:25]} Ra2 {[%emt 0:01:51]} 61. Kd4 {[%emt 0:01:01]} Ra4+ {[%emt 0:00:24]} 62. Ke5 {[%emt 0:00:16]} f6+ {[%emt 0:00:20]} 63. Kd5 {[%emt 0:00:39]} Kf7 {[%emt 0:01:12]} 64. Rb3 {[%emt 0:00:10]} Ra5+ {[%emt 0:00:09]} 65. Ke4 {[%emt 0:00:05]} Re5+ {[%emt 0:00:52]} 66. Kf4 {[%emt 0:00:32]} h5 {[%emt 0:00:44]} 67. Rb7+ {[%emt 0:02:01]} Re7 {[%emt 0:00:04]} 68. Rb5 {[%emt 0:00:54]} hxg4 {[%emt 0:00:26]} 69. hxg4 {[%emt 0:00:25]} Ra7 {[%emt 0:00:05]} 70. Rb4 {[%emt 0:00:44]} Ra6 {[%emt 0:00:16]} 71. Rb5 {[%emt 0:00:49]} Ke6 {[%emt 0:00:19]} 72. Rc5 {[%emt 0:00:07]} Ra4+ {[%emt 0:00:10]} 73. Kf3 {[%emt 0:00:03]} Rd4 {[%emt 0:00:16]} 74. Ra5 {[%emt 0:04:48]} Rd5 {[%emt 0:00:38]} 75. Ra6+ {[%emt 0:00:18]} Ke5 {[%emt 0:00:36]} 76. Ra3 {[%emt 0:00:02]} f5 {[%emt 0:01:12]} 77. gxf5 {[%emt 0:00:01]} Kxf5 {[%emt 0:00:05]} 78. Kg3 {[%emt 0:00:12]} g5 {[%emt 0:00:29]} 79. Rf3+ {[%emt 0:00:09]} Kg6 {[%emt 0:00:07]} 80. Ra3 {[%emt 0:00:14]} Kh5 {[%emt 0:00:04]} 81. Rb3 {[%emt 0:00:26]} Rd1 {[%emt 0:00:17]} 82. Ra3 {[%emt 0:00:13]} Rg1+ {[%emt 0:00:04]} 83. Kh2 {[%emt 0:00:07]} Rg4 {[%emt 0:00:15]} 84. Kh3 {[%emt 0:00:05]} 1/2-1/2

[Event "1000GM Schev-G4 March 2024"]
[Site "Santa Clara"]
[Date "2024.03.09"]
[Round "2.2"]
[White "Jaquez, Juan Manuel"]
[Black "Karthi, Jashith"]
[Result "1/2-1/2"]
[ECO "C95"]
[WhiteElo "2170"]
[BlackElo "2039"]
[Annotator "RC"]
[PlyCount "60"]
[EventDate "2024.03.06"]
[EventType "schev"]
[EventCountry "USA"]
[SourceTitle "playchess.com"]
[Source "ChessBase"]
[SourceQuality "1"]
[TimeControl "5400+30"]

1. e4 {[%emt 0:00:14]} e5 {[%emt 0:00:08]} 2. Nf3 {[%emt 0:00:10]} Nc6 {[%emt 0:00:13]} 3. Bb5 {[%emt 0:00:13]} a6 {[%emt 0:00:09]} 4. Ba4 {[%emt 0:00:09]} Nf6 {[%emt 0:00:06]} 5. O-O {[%emt 0:00:17]} Be7 {[%emt 0:00:09]} 6. Re1 {[%emt 0:00:15]} b5 {[%emt 0:00:05]} 7. Bb3 {[%emt 0:00:07]} d6 {[%emt 0:00:06]} 8. c3 {[%emt 0:00:15]} O-O {[%emt 0:00:07]} 9. h3 {[%emt 0:00:13]} Nb8 {[%emt 0:00:04]} 10. d4 {[%emt 0:01:00]} Nbd7 {[%emt 0:00:21]} 11. Nbd2 {[%emt 0:00:42]} Bb7 {[%emt 0:00:10]} 12. Bc2 {[%emt 0:07:02]} Re8 {[%emt 0:00:16]} 13. Nf1 {[%emt 0:00:09]} Bf8 {[%emt 0:00:06]} 14. Ng3 {[%emt 0:00:07]} g6 {[%emt 0:03:50]} 15. a4 {[%emt 0:04:08]} Bg7 {[%emt 0:00:12]} 16. b3 {[%emt 0:03:44]} d5 {[%emt 0:02:08]} 17. dxe5 {[%emt 0:02:00]} Nxe4 {[%emt 0:00:30]} 18. Nxe4 {[%emt 0:04:08]} dxe4 {[%emt 0:00:06]} 19. Bg5 {[%emt 0:00:37]} Qc8 {[%emt 0:03:20]} 20. Bxe4 {[%emt 0:01:35]} Nxe5 {[%emt 0:01:05]} 21. Bxb7 {[%emt 0:01:50]} Qxb7 {[%emt 0:00:14]} 22. Nxe5 {[%emt 0:06:55]} Rxe5 {[%emt 0:00:26]} 23. Rxe5 {[%emt 0:01:56]} Bxe5 {[%emt 0:00:09]} 24. axb5 {[%emt 0:03:44]} axb5 {[%emt 0:00:31]} 25. Rxa8+ {[%emt 0:01:15]} Qxa8 {[%emt 0:00:02]} 26. Qe1 {[%emt 0:03:17]} Bg7 {[%emt 0:01:16]} 27. c4 {[%emt 0:00:21]} bxc4 {[%emt 0:00:10]} 28. bxc4 {[%emt 0:00:12]} Qa1 {[%emt 0:01:48]} 29. Kf1 {[%emt 0:04:10]} Qa4 {[%emt 0:00:41]} 30. Kg1 {[%emt 0:54:45]} Qa1 {[%emt 0:00:41]} 1/2-1/2

[Event "1000GM Schev-G4 March 2024"]
[Site "Santa Clara"]
[Date "2024.03.10"]
[Round "2.3"]
[White "Montes Orozco, Miguel Angel"]
[Black "Stevens, Adam B"]
[Result "1-0"]
[ECO "D97"]
[WhiteElo "2152"]
[BlackElo "1969"]
[Annotator "RC"]
[PlyCount "69"]
[EventDate "2024.03.06"]
[EventType "schev"]
[EventCountry "USA"]
[SourceTitle "playchess.com"]
[Source "ChessBase"]
[SourceQuality "1"]
[TimeControl "5400+30"]

1. c4 {[%emt 0:00:14]} Nf6 {[%emt 0:00:28]} 2. Nf3 {[%emt 0:00:09]} g6 {[%emt 0:00:17]} 3. Nc3 {[%emt 0:00:21]} d5 {[%emt 0:00:37]} 4. d4 {[%emt 0:01:16]} Bg7 {[%emt 0:00:55]} 5. Qb3 {[%emt 0:00:54]} dxc4 {[%emt 0:00:45]} 6. Qxc4 {[%emt 0:00:06]} O-O {[%emt 0:00:11]} 7. e4 {[%emt 0:00:14]} a6 {[%emt 0:00:07]} 8. Qb3 {[%emt 0:00:11]} b5 {[%emt 0:00:07]} 9. e5 {[%emt 0:00:05]} Nfd7 {[%emt 0:00:05]} 10. e6 {[%emt 0:00:15]} fxe6 {[%emt 0:00:41]} 11. Be3 {[%emt 0:01:41]} Nf6 {[%emt 0:00:10]} 12. a4 {[%emt 0:02:11]} b4 {[%emt 0:00:18]} 13. Qxb4 {[%emt 0:00:30]} Nc6 {[%emt 0:00:05]} 14. Qa3 {[%emt 0:03:03]} Qd6 {[%emt 0:00:06]} 15. Bc4 {[%emt 0:01:50]} Nb4 {[%emt 0:00:06]} 16. Rc1 {[%emt 0:04:46]} Bb7 {[%emt 0:03:40]} 17. Qb3 {[%emt 0:06:22]} Bxf3 {[%emt 0:15:02]} 18. gxf3 {[%emt 0:01:12]} Nfd5 {[%emt 0:04:51]} 19. Ne4 {[%emt 0:03:38]} Qb6 {[%emt 0:01:22]} 20. Nc5 {[%emt 0:02:41]} Rxf3 {[%emt 0:03:13]} 21. Be2 {[%emt 0:02:19]} Rh3 {[%emt 0:04:31]} 22. Bg4 {[%emt 0:01:23]} Nxe3 {[%emt 0:07:27]} 23. Bxh3 {[%emt 0:06:20]} Bxd4 {[%emt 0:02:33]} 24. Qxe6+ {[%emt 0:01:38]} Qxe6 {[%emt 0:01:41]} 25. Bxe6+ {[%emt 0:00:06]} Kg7 {[%emt 0:00:18]} 26. fxe3 {[%emt 0:00:15]} Bxc5 {[%emt 0:00:23]} 27. Ke2 {[%emt 0:00:05]} Bd6 {[%emt 0:01:09]} 28. Rhf1 {[%emt 0:00:06]} Rf8 {[%emt 0:06:11]} 29. Rxf8 {[%emt 0:00:56]} Kxf8 {[%emt 0:00:01]} 30. Rf1+ {[%emt 0:00:21]} Kg7 {[%emt 0:00:02]} 31. h3 {[%emt 0:00:30]} Nc6 {[%emt 0:00:20]} 32. Rf7+ {[%emt 0:00:09]} Kh6 {[%emt 0:00:03]} 33. Rf8 {[%emt 0:00:33]} Bb4 {[%emt 0:01:44]} 34. Rc8 {[%emt 0:02:10]} Bd6 {[%emt 0:00:28]} 35. Ra8 {[%emt 0:59:30]} 1-0

[Event "1000GM Schev-G4 March 2024"]
[Site "Santa Clara"]
[Date "2024.03.09"]
[Round "2.4"]
[White "Talwalkar, Vedant"]
[Black "Vittorino, Carlo Giovanni"]
[Result "1/2-1/2"]
[ECO "C28"]
[WhiteElo "1996"]
[BlackElo "2226"]
[Annotator "RC"]
[PlyCount "32"]
[EventDate "2024.03.06"]
[EventType "schev"]
[EventCountry "USA"]
[SourceTitle "playchess.com"]
[Source "ChessBase"]
[SourceQuality "1"]
[TimeControl "5400+30"]

1. e4 {[%emt 0:00:02]} e5 {[%emt 0:07:28]} 2. Nc3 {[%emt 0:00:05]} Nc6 {[%emt 0:00:06]} 3. Bc4 {[%emt 0:00:11]} Nf6 {[%emt 0:15:08]} 4. d3 {[%emt 0:00:06]} Bb4 {[%emt 0:00:32]} 5. Nge2 {[%emt 0:00:07]} d5 {[%emt 0:00:07]} 6. exd5 {[%emt 0:00:03]} Nxd5 {[%emt 0:00:06]} 7. O-O {[%emt 0:00:12]} Be6 {[%emt 0:00:13]} 8. Bxd5 {[%emt 0:00:34]} Bxd5 {[%emt 0:00:02]} 9. f4 {[%emt 0:00:10]} Qd7 {[%emt 0:15:43]} 10. Nxd5 {[%emt 0:00:35]} Qxd5 {[%emt 0:00:04]} 11. fxe5 {[%emt 0:00:19]} Qxe5 {[%emt 0:02:45]} 12. c3 {[%emt 0:05:30]} Bd6 {[%emt 0:01:14]} 13. Bf4 {[%emt 0:00:35]} Qe7 {[%emt 0:02:31]} 14. Bxd6 {[%emt 0:05:33]} Qxd6 {[%emt 0:03:24]} 15. d4 {[%emt 0:01:05]} O-O {[%emt 0:00:14]} 16. Ng3 {[%emt 0:00:52]} Ne7 {[%emt 0:04:31]} 1/2-1/2

[Event "1000GM Schev-G4 March 2024"]
[Site "Santa Clara"]
[Date "2024.03.10"]
[Round "2.5"]
[White "Jasinski, Alexander"]
[Black "Kretchetov, Alexandre"]
[Result "0-1"]
[ECO "B06"]
[WhiteElo "1981"]
[BlackElo "2141"]
[Annotator "RC"]
[PlyCount "158"]
[EventDate "2024.03.06"]
[EventType "schev"]
[EventCountry "USA"]
[SourceTitle "playchess.com"]
[Source "ChessBase"]
[SourceQuality "1"]
[TimeControl "5400+30"]

1. e4 {[%emt 0:00:02]} c6 {[%emt 0:09:08]} 2. d4 {[%emt 0:00:20]} g6 {[%emt 0:00:06]} 3. Nf3 {[%emt 0:01:01]} Bg7 {[%emt 0:00:07]} 4. Bf4 {[%emt 0:02:26]} Qb6 {[%emt 0:02:11]} 5. b3 {[%emt 0:04:00]} d6 {[%emt 0:03:33]} 6. c3 {[%emt 0:07:04]} Nf6 {[%emt 0:01:56]} 7. Nbd2 {[%emt 0:01:05]} O-O {[%emt 0:01:13]} 8. Bd3 {[%emt 0:01:07]} Bg4 {[%emt 0:02:29]} 9. h3 {[%emt 0:00:58]} Bxf3 {[%emt 0:00:05]} 10. Nxf3 {[%emt 0:02:59]} Nbd7 {[%emt 0:00:23]} 11. O-O {[%emt 0:00:32]} Rfe8 {[%emt 0:00:49]} 12. Qc2 {[%emt 0:04:14]} e5 {[%emt 0:00:14]} 13. dxe5 {[%emt 0:03:59]} dxe5 {[%emt 0:01:24]} 14. Be3 {[%emt 0:00:41]} Qc7 {[%emt 0:00:37]} 15. a4 {[%emt 0:02:35]} a5 {[%emt 0:04:56]} 16. Rfd1 {[%emt 0:05:19]} Bf8 {[%emt 0:00:15]} 17. Bc4 {[%emt 0:02:08]} Nb6 {[%emt 0:05:53]} 18. Bxb6 {[%emt 0:06:22]} Qxb6 {[%emt 0:00:04]} 19. Ng5 {[%emt 0:00:32]} Re7 {[%emt 0:00:33]} 20. Qe2 {[%emt 0:02:22]} Qc7 {[%emt 0:07:17]} 21. Rd3 {[%emt 0:09:42]} h6 {[%emt 0:01:12]} 22. Nf3 {[%emt 0:00:13]} Rd8 {[%emt 0:03:01]} 23. Rxd8 {[%emt 0:00:52]} Qxd8 {[%emt 0:00:05]} 24. Rd1 {[%emt 0:00:14]} Qc7 {[%emt 0:01:02]} 25. Nh4 {[%emt 0:03:43]} Kh7 {[%emt 0:01:55]} 26. Nf3 {[%emt 0:00:24]} Kg7 {[%emt 0:00:58]} 27. Rd2 {[%emt 0:01:36]} Rd7 {[%emt 0:02:15]} 28. Rxd7 {[%emt 0:02:03]} Nxd7 {[%emt 0:00:05]} 29. Ne1 {[%emt 0:01:32]} Nc5 {[%emt 0:01:25]} 30. Nd3 {[%emt 0:02:11]} Nxd3 {[%emt 0:00:13]} 31. Qxd3 {[%emt 0:00:13]} Qd6 {[%emt 0:01:07]} 32. Qf3 {[%emt 0:01:14]} Qf6 {[%emt 0:00:08]} 33. Qxf6+ {[%emt 0:01:56]} Kxf6 {[%emt 0:00:06]} 34. g3 {[%emt 0:00:38]} Ba3 {[%emt 0:00:25]} 35. Be2 {[%emt 0:02:09]} Bb2 {[%emt 0:00:09]} 36. c4 {[%emt 0:00:09]} Ke7 {[%emt 0:01:18]} 37. Kg2 {[%emt 0:00:20]} Kd6 {[%emt 0:00:31]} 38. f4 {[%emt 0:01:00]} Kc5 {[%emt 0:00:31]} 39. Kf3 {[%emt 0:01:48]} Kb4 {[%emt 0:03:11]} 40. Bd1 {[%emt 0:00:13]} Kc3 {[%emt 0:02:02]} 41. Ke2 {[%emt 0:02:18]} exf4 {[%emt 0:05:59]} 42. gxf4 {[%emt 0:00:07]} Bc1 {[%emt 0:00:05]} 43. f5 {[%emt 0:00:46]} gxf5 {[%emt 0:01:41]} 44. exf5 {[%emt 0:00:09]} Bg5 {[%emt 0:00:31]} 45. Ke1 {[%emt 0:01:56]} Kb2 {[%emt 0:05:36]} 46. c5 {[%emt 0:14:33]} f6 {[%emt 0:03:53]} 47. Kf1 {[%emt 0:02:17]} Kc3 {[%emt 0:05:51]} 48. Ke2 {[%emt 0:01:11]} h5 {[%emt 0:02:22]} 49. Ke1 {[%emt 0:00:30]} h4 {[%emt 0:00:36]} 50. Ke2 {[%emt 0:00:13]} Bc1 {[%emt 0:00:48]} 51. Kf3 {[%emt 0:01:25]} Kd4 {[%emt 0:01:00]} 52. Be2 {[%emt 0:00:29]} Kxc5 {[%emt 0:00:34]} 53. Ke4 {[%emt 0:01:16]} Kb4 {[%emt 0:00:30]} 54. Bc4 {[%emt 0:01:08]} b5 {[%emt 0:03:09]} 55. axb5 {[%emt 0:02:41]} cxb5 {[%emt 0:00:12]} 56. Bf7 {[%emt 0:00:14]} Kc3 {[%emt 0:02:48]} 57. Kd5 {[%emt 0:00:48]} a4 {[%emt 0:01:58]} 58. bxa4 {[%emt 0:00:14]} bxa4 {[%emt 0:00:24]} 59. Ke6 {[%emt 0:00:46]} Bg5 {[%emt 0:00:07]} 60. Kd5 {[%emt 0:00:10]} a3 {[%emt 0:00:15]} 61. Ke4 {[%emt 0:00:12]} Kb2 {[%emt 0:00:16]} 62. Kf3 {[%emt 0:00:05]} a2 {[%emt 0:00:04]} 63. Bxa2 {[%emt 0:00:03]} Kxa2 {[%emt 0:00:05]} 64. Kg4 {[%emt 0:00:03]} Kb3 {[%emt 0:00:07]} 65. Kh5 {[%emt 0:00:03]} Kc4 {[%emt 0:00:05]} 66. Kg4 {[%emt 0:00:02]} Kd3 {[%emt 0:00:07]} 67. Kh5 {[%emt 0:00:04]} Ke3 {[%emt 0:00:11]} 68. Kg4 {[%emt 0:00:02]} Ke4 {[%emt 0:00:10]} 69. Kh5 {[%emt 0:00:04]} Kf4 {[%emt 0:01:49]} 70. Kg6 {[%emt 0:00:03]} Kg3 {[%emt 0:00:13]} 71. Kh5 {[%emt 0:00:04]} Kxh3 {[%emt 0:00:10]} 72. Kg6 {[%emt 0:00:02]} Kg4 {[%emt 0:00:13]} 73. Kh7 {[%emt 0:00:03]} Kxf5 {[%emt 0:00:08]} 74. Kh8 {[%emt 0:00:04]} h3 {[%emt 0:00:05]} 75. Kg8 {[%emt 0:00:02]} h2 {[%emt 0:00:10]} 76. Kh8 {[%emt 0:00:02]} h1=Q+ {[%emt 0:00:18]} 77. Kg8 {[%emt 0:00:05]} Kg6 {[%emt 0:00:25]} 78. Kf8 {[%emt 0:00:03]} Qe4 {[%emt 0:00:20]} 79. Kg8 {[%emt 0:00:05]} Qe8# {[%emt 0:00:05]} 0-1

[Event "1000GM Schev-G4 March 2024"]
[Site "Santa Clara"]
[Date "2024.03.10"]
[Round "3.1"]
[White "Yao, Hanchi"]
[Black "Jaquez, Juan Manuel"]
[Result "1/2-1/2"]
[ECO "E32"]
[WhiteElo "1997"]
[BlackElo "2170"]
[Annotator "RC"]
[PlyCount "79"]
[EventDate "2024.03.06"]
[EventType "schev"]
[EventCountry "USA"]
[SourceTitle "playchess.com"]
[Source "ChessBase"]
[SourceQuality "1"]
[TimeControl "5400+30"]

1. d4 {[%emt 0:03:42]} Nf6 {[%emt 0:00:11]} 2. c4 {[%emt 0:00:03]} e6 {[%emt 0:00:21]} 3. Nc3 {[%emt 0:00:03]} Bb4 {[%emt 0:00:09]} 4. Qc2 {[%emt 0:00:03]} c5 {[%emt 0:01:30]} 5. dxc5 {[%emt 0:00:07]} Bxc5 {[%emt 0:01:15]} 6. Nf3 {[%emt 0:00:12]} O-O {[%emt 0:01:12]} 7. Bg5 {[%emt 0:00:29]} h6 {[%emt 0:00:41]} 8. Bh4 {[%emt 0:00:13]} Be7 {[%emt 0:02:37]} 9. e3 {[%emt 0:01:31]} Nc6 {[%emt 0:00:24]} 10. Be2 {[%emt 0:00:09]} d5 {[%emt 0:02:41]} 11. cxd5 {[%emt 0:00:23]} Nb4 {[%emt 0:02:51]} 12. Qb3 {[%emt 0:00:47]} Nbxd5 {[%emt 0:01:49]} 13. Nxd5 {[%emt 0:01:02]} Nxd5 {[%emt 0:00:33]} 14. Bxe7 {[%emt 0:00:12]} Qxe7 {[%emt 0:00:11]} 15. O-O {[%emt 0:00:09]} b6 {[%emt 0:00:53]} 16. Rfd1 {[%emt 0:01:42]} Bb7 {[%emt 0:00:22]} 17. Rac1 {[%emt 0:01:06]} Rac8 {[%emt 0:04:39]} 18. h3 {[%emt 0:01:11]} Rfd8 {[%emt 0:01:23]} 19. Nd4 {[%emt 0:03:05]} Nf6 {[%emt 0:08:06]} 20. Bf3 {[%emt 0:03:58]} Bxf3 {[%emt 0:03:10]} 21. Nxf3 {[%emt 0:00:04]} Rxd1+ {[%emt 0:03:59]} 22. Qxd1 {[%emt 0:00:49]} Rc5 {[%emt 0:07:20]} 23. Rxc5 {[%emt 0:01:10]} Qxc5 {[%emt 0:00:21]} 24. Qd8+ {[%emt 0:00:02]} Kh7 {[%emt 0:00:13]} 25. Qd3+ {[%emt 0:00:05]} g6 {[%emt 0:01:23]} 26. Qd4 {[%emt 0:00:09]} Qxd4 {[%emt 0:01:50]} 27. Nxd4 {[%emt 0:00:05]} Nd7 {[%emt 0:00:49]} 28. Kf1 {[%emt 0:00:15]} Kg7 {[%emt 0:00:36]} 29. Ke2 {[%emt 0:00:04]} e5 {[%emt 0:00:33]} 30. Nc2 {[%emt 0:00:36]} f5 {[%emt 0:00:36]} 31. h4 {[%emt 0:01:03]} Kf7 {[%emt 0:00:22]} 32. f3 {[%emt 0:00:48]} Ke6 {[%emt 0:00:22]} 33. Kd3 {[%emt 0:01:16]} Kd5 {[%emt 0:05:50]} 34. e4+ {[%emt 0:00:32]} fxe4+ {[%emt 0:00:05]} 35. fxe4+ {[%emt 0:00:09]} Kd6 {[%emt 0:01:48]} 36. b4 {[%emt 0:00:28]} a5 {[%emt 0:00:47]} 37. a3 {[%emt 0:00:48]} Nf6 {[%emt 0:03:04]} 38. Ne3 {[%emt 0:00:22]} axb4 {[%emt 0:00:26]} 39. axb4 {[%emt 0:00:11]} b5 {[%emt 0:00:24]} 40. g3 {[%emt 0:02:16]} 1/2-1/2

[Event "1000GM Schev-G4 March 2024"]
[Site "Santa Clara"]
[Date "2024.03.10"]
[Round "3.3"]
[White "Vittorino, Carlo Giovanni"]
[Black "Stevens, Adam B"]
[Result "1-0"]
[ECO "D23"]
[WhiteElo "2226"]
[BlackElo "1969"]
[Annotator "RC"]
[PlyCount "57"]
[EventDate "2024.03.06"]
[EventType "schev"]
[EventCountry "USA"]
[SourceTitle "playchess.com"]
[Source "ChessBase"]
[SourceQuality "1"]
[TimeControl "5400+30"]

1. d4 {[%emt 0:02:47]} d5 {[%emt 0:00:06]} 2. c4 {[%emt 0:00:05]} c6 {[%emt 0:00:03]} 3. Nf3 {[%emt 0:00:25]} Nf6 {[%emt 0:00:04]} 4. Qc2 {[%emt 0:01:36]} dxc4 {[%emt 0:00:14]} 5. Qxc4 {[%emt 0:00:14]} Bf5 {[%emt 0:00:08]} 6. Nc3 {[%emt 0:01:38]} e6 {[%emt 0:01:11]} 7. g3 {[%emt 0:00:53]} Be7 {[%emt 0:02:46]} 8. Bg2 {[%emt 0:00:06]} h6 {[%emt 0:02:44]} 9. O-O {[%emt 0:00:11]} O-O {[%emt 0:00:06]} 10. Ne5 {[%emt 0:05:01]} Nbd7 {[%emt 0:02:10]} 11. e4 {[%emt 0:01:19]} Bh7 {[%emt 0:00:33]} 12. Nxd7 {[%emt 0:08:18]} Qxd7 {[%emt 0:00:53]} 13. Rd1 {[%emt 0:01:35]} b5 {[%emt 0:05:18]} 14. Qe2 {[%emt 0:00:06]} b4 {[%emt 0:02:41]} 15. Na4 {[%emt 0:00:58]} Rac8 {[%emt 0:05:35]} 16. f3 {[%emt 0:20:04]} Qb7 {[%emt 0:03:08]} 17. Be3 {[%emt 0:00:40]} Nd7 {[%emt 0:02:36]} 18. Rac1 {[%emt 0:00:59]} e5 {[%emt 0:02:42]} 19. dxe5 {[%emt 0:13:34]} Nxe5 {[%emt 0:00:24]} 20. f4 {[%emt 0:04:39]} Nd7 {[%emt 0:01:09]} 21. e5 {[%emt 0:00:48]} Nb6 {[%emt 0:00:40]} 22. Nc5 {[%emt 0:00:18]} Qa8 {[%emt 0:02:17]} 23. Nd7 {[%emt 0:00:52]} Rfd8 {[%emt 0:01:34]} 24. Nxb6 {[%emt 0:02:21]} axb6 {[%emt 0:02:08]} 25. Bxb6 {[%emt 0:01:56]} Rxd1+ {[%emt 0:00:39]} 26. Qxd1 {[%emt 0:00:36]} Qxa2 {[%emt 0:02:00]} 27. Qd7 {[%emt 0:00:28]} Qa6 {[%emt 1:00:11]} 28. Bf2 {[%emt 0:07:28]} Bf8 {[%emt 0:00:00]} 29. Bd5 {[%emt 0:02:51]} 1-0

[Event "1000GM Schev-G4 March 2024"]
[Site "Santa Clara"]
[Date "2024.03.10"]
[Round "3.4"]
[White "Kretchetov, Alexandre"]
[Black "Talwalkar, Vedant"]
[Result "1-0"]
[ECO "A81"]
[WhiteElo "2141"]
[BlackElo "1996"]
[Annotator "RC"]
[PlyCount "47"]
[EventDate "2024.03.06"]
[EventType "schev"]
[EventCountry "USA"]
[SourceTitle "playchess.com"]
[Source "ChessBase"]
[SourceQuality "1"]
[TimeControl "5400+30"]

1. d4 {[%emt 0:04:04]} f5 {[%emt 0:00:07]} 2. g3 {[%emt 0:00:48]} Nf6 {[%emt 0:00:07]} 3. Bg2 {[%emt 0:00:03]} d6 {[%emt 0:00:17]} 4. Nf3 {[%emt 0:04:53]} g6 {[%emt 0:00:08]} 5. b3 {[%emt 0:00:35]} Bg7 {[%emt 0:00:21]} 6. Bb2 {[%emt 0:00:04]} O-O {[%emt 0:00:47]} 7. Nbd2 {[%emt 0:00:05]} c6 {[%emt 0:01:57]} 8. O-O {[%emt 0:00:14]} Qc7 {[%emt 0:01:02]} 9. Re1 {[%emt 0:03:36]} Ne4 {[%emt 0:01:20]} 10. Nxe4 {[%emt 0:06:40]} fxe4 {[%emt 0:00:09]} 11. Nd2 {[%emt 0:00:14]} d5 {[%emt 0:00:11]} 12. f3 {[%emt 0:00:22]} exf3 {[%emt 0:05:37]} 13. exf3 {[%emt 0:00:21]} Qb6 {[%emt 0:04:52]} 14. Kh1 {[%emt 0:00:49]} Re8 {[%emt 0:11:11]} 15. f4 {[%emt 0:01:25]} Nd7 {[%emt 0:04:15]} 16. Nf3 {[%emt 0:08:17]} Nf6 {[%emt 0:00:06]} 17. Re2 {[%emt 0:03:14]} Ne4 {[%emt 0:02:23]} 18. Qe1 {[%emt 0:00:23]} Bg4 {[%emt 0:04:15]} 19. h3 {[%emt 0:05:02]} Bxf3 {[%emt 0:01:44]} 20. Bxf3 {[%emt 0:00:01]} Bxd4 {[%emt 0:02:09]} 21. Bxd4 Qxd4 22. Bxe4 dxe4 23. Rxe4 {[%emt 1:00:50]} Qb2 24. c4 {[%emt 0:00:30]} 1-0